bitfinex/quotes_BTCUSD_20260125
["timestamp","ask_amount","ask_price","bid_price","bid_amount"]
[1769309714147,0.11231073,89146.0,89134.0,0.20299049]
[1769309714345,0.11231073,89145.0,89134.0,0.20299049]
[1769309714532,0.11231073,89144.0,89134.0,0.20299049]
[1769309714732,0.11231073,89143.0,89134.0,0.20299049]
[1769309715051,0.11231073,89142.0,89134.0,0.20299049]
[1769309715238,0.11231073,89141.0,89134.0,0.20299049]
[1769309715474,0.11231073,89140.0,89134.0,0.20299049]
[1769309715784,0.11231073,89139.0,89134.0,0.20299049]
[1769309715939,0.11231073,89138.0,89134.0,0.20299049]
[1769309716146,0.11231073,89137.0,89134.0,0.20299049]
[1769309716400,0.01998028,89148.0,89134.0,0.20299049]
[1769309716730,0.1123099,89147.0,89134.0,0.20299049]
[1769309716934,0.1123099,89146.0,89134.0,0.20299049]
[1769309717089,0.1123099,89145.0,89134.0,0.20299049]
[1769309717278,0.1123099,89144.0,89134.0,0.20299049]
[1769309717480,0.1123099,89143.0,89134.0,0.20299049]
[1769309717816,0.1123099,89142.0,89134.0,0.20299049]
[1769309718111,0.1123099,89141.0,89134.0,0.20299049]
[1769309718279,0.1123099,89140.0,89134.0,0.20299049]
[1769309718476,0.01998028,89148.0,89134.0,0.20299049]
[1769309718477,0.1123099,89139.0,89134.0,0.20299049]
[1769309718700,0.1123099,89138.0,89134.0,0.20299049]
[1769309718898,0.1123099,89137.0,89134.0,0.20299049]
[1769309719099,0.1123099,89136.0,89134.0,0.20299049]
[1769309719302,0.01998028,89148.0,89134.0,0.20299049]
[1769309719514,0.11230977,89147.0,89134.0,0.20299049]
[1769309719818,0.11230977,89146.0,89134.0,0.20299049]
[1769309720014,0.11230977,89145.0,89134.0,0.20299049]
[1769309720184,0.11230977,89144.0,89134.0,0.20299049]
[1769309720387,0.11230977,89143.0,89134.0,0.20299049]
[1769309720589,0.11230977,89142.0,89134.0,0.20299049]
[1769309720796,0.11230977,89141.0,89134.0,0.20299049]
[1769309720996,0.11230977,89140.0,89134.0,0.20299049]
[1769309721331,0.11230977,89139.0,89134.0,0.20754409]
[1769309721527,0.11230977,89138.0,89135.0,0.18419857]
[1769309721742,0.16194412,89151.0,89135.0,0.18419857]
[1769309721936,0.11230664,89150.0,89135.0,0.18419857]
[1769309722135,0.11230664,89149.0,89135.0,0.18419857]
[1769309722333,0.11230664,89148.0,89135.0,0.18419857]
[1769309722500,0.11230664,89147.0,89135.0,0.18419857]
[1769309722686,0.11230664,89146.0,89135.0,0.18419857]
[1769309722888,0.11230664,89145.0,89135.0,0.18419857]
[1769309723085,0.11230664,89144.0,89135.0,0.18419857]
[1769309723326,0.11230664,89143.0,89135.0,0.18419857]
[1769309723526,0.11230664,89142.0,89135.0,0.18419857]
[1769309723724,0.11230664,89141.0,89135.0,0.18419857]
[1769309723908,0.11230664,89140.0,89135.0,0.18419857]
[1769309724123,0.11230664,89139.0,89135.0,0.18419857]
[1769309724306,0.11230664,89138.0,89135.0,0.18419857]
[1769309724496,0.16194412,89151.0,89135.0,0.18419857]
[1769309724837,0.11230101,89150.0,89135.0,0.18419857]
[1769309725144,0.11230101,89149.0,89135.0,0.18419857]
[1769309725351,0.11230101,89148.0,89135.0,0.18419857]
[1769309725559,0.11230101,89147.0,89135.0,0.18419857]
[1769309725859,0.11230101,89146.0,89135.0,0.18419857]
[1769309726012,0.11230101,89145.0,89135.0,0.18419857]
[1769309726212,0.11230101,89144.0,89135.0,0.18419857]
[1769309726434,0.11230101,89143.0,89135.0,0.18419857]
[1769309726638,0.11230101,89142.0,89135.0,0.18419857]
[1769309726839,0.11230101,89141.0,89135.0,0.18419857]
[1769309727039,0.11230101,89140.0,89135.0,0.18419857]
[1769309727231,0.11230101,89139.0,89135.0,0.18419857]
[1769309727439,0.11230101,89138.0,89135.0,0.18419857]
[1769309727687,0.16194412,89151.0,89135.0,0.18419857]
[1769309727987,0.11229741,89150.0,89135.0,0.18419857]
[1769309728196,0.11229741,89149.0,89135.0,0.18419857]
[1769309728513,0.11229741,89148.0,89135.0,0.18419857]
[1769309728698,0.11229741,89147.0,89135.0,0.18419857]
[1769309728838,0.11229741,89146.0,89135.0,0.18419857]
[1769309729042,0.11229741,89145.0,89135.0,0.18419857]
[1769309729240,0.03,89143.0,89135.0,0.18419857]
[1769309729443,0.03,89142.0,89135.0,0.18419857]
[1769309730597,0.03,89144.0,89135.0,0.18419857]
[1769309731495,0.03,89143.0,89135.0,0.18419857]
[1769309732654,0.03,89142.0,89135.0,0.18419857]
[1769309733825,0.11229513,89146.0,89135.0,0.18419857]
[1769309733826,0.14229513,89145.0,89135.0,0.18419857]
[1769309734131,0.03,89143.0,89135.0,0.18419857]
[1769309734300,0.14229513,89143.0,89135.0,0.18419857]
[1769309734622,0.03,89141.0,89135.0,0.18419857]
[1769309735504,0.03,89140.0,89135.0,0.18419857]
[1769309735710,0.03,89140.0,89136.0,0.19286802]
[1769309736892,0.14229513,89140.0,89136.0,0.19286802]
[1769309737097,0.03,89138.0,89136.0,0.19286802]
[1769309738110,0.14229401,89147.0,89136.0,0.19286802]
[1769309738306,0.03,89145.0,89136.0,0.19286802]
[1769309739197,0.03,89146.0,89136.0,0.19286802]
[1769309740298,0.03,89145.0,89136.0,0.19286802]
[1769309741328,0.03,89149.0,89136.0,0.19286802]
[1769309741532,0.03,89144.0,89136.0,0.19286802]
[1769309741958,0.03,89135.0,89127.0,0.00019673]
[1769309743095,0.03,89134.0,89127.0,0.00019673]
[1769309744061,0.03,89142.0,89127.0,0.00019673]
[1769309744528,0.04121805,89142.0,89127.0,0.00019673]
[1769309744963,0.15351206,89142.0,89127.0,0.00019673]
[1769309745159,0.03,89139.0,89127.0,0.00019673]
[1769309745378,0.03,89135.0,89127.0,0.00019673]
[1769309745785,0.14229401,89135.0,89127.0,0.00019673]
[1769309745965,0.03,89133.0,89127.0,0.00019673]
[1769309747034,0.03,89134.0,89127.0,0.00019673]
[1769309763239,0.03,89132.0,89127.0,0.00019673]
[1769309763938,0.14216335,89132.0,89127.0,0.00019673]
[1769309764165,0.03,89130.0,89127.0,0.00019673]
[1769309764360,0.14216335,89130.0,89127.0,0.00019673]
[1769309764529,0.03,89130.0,89127.0,0.00019673]
[1769309765183,0.03,89134.0,89127.0,0.00019673]
[1769309766309,0.04998028,89134.0,89127.0,0.00019673]
[1769309766461,0.04998028,89132.0,89127.0,0.00019673]
[1769309766658,0.03,89130.0,89127.0,0.00019673]
[1769309766854,0.14216558,89130.0,89127.0,0.00019673]
[1769309767077,0.03,89130.0,89127.0,0.00019673]
[1769309767689,0.03,89129.0,89127.0,0.00019673]
[1769309768924,0.03,89132.0,89127.0,0.00019673]
[1769309769104,0.04998028,89132.0,89127.0,0.00019673]
[1769309769308,0.03,89130.0,89127.0,0.00019673]
[1769309772388,0.03,89129.0,89127.0,0.00019673]
[1769309772587,0.14217369,89129.0,89127.0,0.00019673]
[1769309772779,0.14217369,89128.0,89127.0,0.00019673]
[1769309773180,0.03,89128.0,89127.0,0.00019673]
[1769309773803,0.03,89133.0,89127.0,0.00019673]
[1769309774019,0.04121918,89133.0,89127.0,0.00019673]
[1769309774220,0.15339287,89133.0,89127.0,0.00019673]
[1769309775661,0.14217369,89133.0,89127.0,0.00019673]
[1769309775848,0.03,89131.0,89127.0,0.00019673]
[1769309776153,0.14217369,89131.0,89127.0,0.00019673]
[1769309776452,0.03,89129.0,89127.0,0.00019673]
[1769309776760,0.14217369,89129.0,89127.0,0.00019673]
[1769309777064,0.14217369,89129.0,89111.0,0.03366147]
[1769309777065,0.03,89123.0,89107.0,0.19785461]
[1769309777240,0.14222121,89123.0,89107.0,0.19785461]
[1769309777763,0.14222121,89123.0,89109.0,0.19800381]
[1769309778950,0.03,89121.0,89109.0,0.19800381]
[1769309779862,4.752e-05,89123.0,89109.0,0.19800381]
[1769309780070,0.03,89120.0,89109.0,0.19800381]
[1769309781026,0.03,89119.0,89109.0,0.19800381]
[1769309781980,0.03,89118.0,89109.0,0.19800381]
[1769309782368,0.03,89118.0,89109.0,0.19215685]
[1769309783095,0.03,89117.0,89109.0,0.19215685]
[1769309784079,4.752e-05,89123.0,89109.0,0.19215685]
[1769309785168,0.03004752,89123.0,89109.0,0.19215685]
[1769309785577,0.03,89121.0,89100.0,0.20342158]
[1769309785771,0.03,89119.0,89102.0,0.19785461]
[1769309785959,0.03,89119.0,89102.0,0.20327238]
[1769309786161,0.14217369,89119.0,89103.0,0.19785461]
[1769309786358,0.03,89117.0,89103.0,0.19785461]
[1769309787369,0.03,89116.0,89103.0,0.19785461]
[1769309788418,0.03,89118.0,89103.0,0.19785461]
[1769309790384,0.03,89118.0,89104.0,0.19785461]
[1769309791742,0.03,89118.0,89105.0,0.19785461]
[1769309792980,0.03,89118.0,89106.0,0.19607627]
[1769309798010,0.03,89118.0,89101.0,0.19607627]
[1769309799428,0.03,89118.0,89102.0,0.19607627]
[1769309799579,0.03,89118.0,89103.0,0.20307543]
[1769309799783,0.03,89118.0,89104.0,0.19607627]
[1769309806370,0.03,89117.0,89104.0,0.19607627]
[1769309807163,0.14217369,89117.0,89104.0,0.19607627]
[1769309807356,0.09185888,89120.0,89104.0,0.19607627]
[1769309807563,0.0021282,89120.0,89104.0,0.19607627]
[1769309808455,0.03,89119.0,89104.0,0.19607627]
[1769309809058,0.03,89119.0,89104.0,0.20307543]
[1769309809285,0.03,89119.0,89105.0,0.19607627]
[1769309809590,0.03,89122.0,89105.0,0.19607627]
[1769309809888,0.03,89120.0,89105.0,0.19607627]
[1769309810677,0.0323627,89122.0,89105.0,0.19607627]
[1769309812707,0.03,89126.0,89105.0,0.19607627]
[1769309812919,0.04122044,89123.0,89105.0,0.19614561]
[1769309813130,0.04122044,89123.0,89105.0,0.20314477]
[1769309813317,0.04382574,89124.0,89106.0,0.20195538]
[1769309813827,0.04122044,89123.0,89106.0,0.20195538]
[1769309814594,0.03,89120.0,89106.0,0.20195538]
[1769309815494,0.03,89119.0,89106.0,0.20307543]
[1769309815695,0.03,89119.0,89107.0,0.20195538]
[1769309816496,0.11318735,89132.0,89107.0,0.20195538]
[1769309816742,0.01122069,89121.0,89107.0,0.20210458]
[1769309817044,0.01122044,89123.0,89107.0,0.20210458]
[1769309817544,0.01122057,89122.0,89107.0,0.20210458]
[1769309817913,0.03,89122.0,89107.0,0.20210458]
[1769309818921,0.03,89123.0,89107.0,0.20210458]
[1769309820135,0.11190282,89123.0,89107.0,0.20210458]
[1769309820340,0.03,89122.0,89107.0,0.20210458]
[1769309821870,0.03,89121.0,89107.0,0.20210458]
[1769309822976,0.03,89126.0,89107.0,0.20210458]
[1769309823693,0.03,89123.0,89107.0,0.20210458]
[1769309823885,0.04122044,89123.0,89107.0,0.20210458]
[1769309824743,0.01122044,89123.0,89107.0,0.20210458]
[1769309825437,0.01122032,89124.0,89107.0,0.20210458]
[1769309826905,0.04122044,89123.0,89107.0,0.20210458]
[1769309827300,0.03,89121.0,89107.0,0.20210458]
[1769309827635,0.01122044,89123.0,89107.0,0.20210458]
[1769309828624,0.03,89122.0,89107.0,0.20210458]
[1769309829838,0.03,89121.0,89107.0,0.20210458]
[1769309830805,0.03,89120.0,89107.0,0.20210458]
[1769309831002,0.1460021,89124.0,89107.0,0.20210458]
[1769309831227,0.13478178,89125.0,89107.0,0.20210458]
[1769309831431,0.01122032,89124.0,89107.0,0.20210458]
[1769309832030,0.03,89123.0,89107.0,0.20210458]
[1769309832228,0.03,89121.0,89107.0,0.20210458]
[1769309832435,0.03,89119.0,89107.0,0.20210458]
[1769309832633,0.03,89117.0,89107.0,0.20210458]
[1769309832867,0.03,89115.0,89107.0,0.20210458]
[1769309833062,0.14234845,89115.0,89107.0,0.20210458]
[1769309833282,0.03,89113.0,89107.0,0.20210458]
[1769309834284,0.03,89112.0,89107.0,0.21627031]
[1769309834604,0.03,89112.0,89109.0,0.20043464]
[1769309835336,0.14234845,89114.0,89109.0,0.20043464]
[1769309835538,0.03,89112.0,89109.0,0.20058384]
[1769309836575,0.03,89111.0,89109.0,0.20058384]
[1769309837024,0.11234845,89115.0,89109.0,0.20058384]
[1769309837220,0.11234845,89114.0,89109.0,0.20058384]
[1769309837429,0.11234845,89113.0,89109.0,0.20058384]
[1769309837574,0.03,89111.0,89109.0,0.20058384]
[1769309838343,0.11234845,89119.0,89109.0,0.20058384]
[1769309838557,0.11234845,89118.0,89109.0,0.20058384]
[1769309838758,0.03,89116.0,89109.0,0.20058384]
[1769309838903,0.03,89114.0,89109.0,0.20058384]
[1769309840026,0.14234845,89117.0,89109.0,0.20058384]
[1769309840224,0.03,89115.0,89109.0,0.20058384]
[1769309840568,0.14234845,89115.0,89109.0,0.20058384]
[1769309840770,0.03,89113.0,89109.0,0.20058384]
[1769309841950,0.14234845,89116.0,89109.0,0.20058384]
[1769309842170,0.03,89114.0,89109.0,0.20058384]
[1769309842380,0.14234845,89114.0,89109.0,0.20058384]
[1769309842586,0.03,89112.0,89109.0,0.20058384]
[1769309842792,0.14234845,89112.0,89109.0,0.20058384]
[1769309842967,0.11234845,89111.0,89109.0,0.20058384]
[1769309843171,0.10234845,89110.0,89109.0,0.20058384]
[1769309843388,0.14600197,89125.0,89109.0,0.20058384]
[1769309844333,0.01122032,89124.0,89109.0,0.20058384]
[1769309845267,0.14600197,89125.0,89109.0,0.20058384]
[1769309845467,0.01122032,89124.0,89109.0,0.20058384]
[1769309846243,0.01122044,89123.0,89109.0,0.20058384]
[1769309846453,0.01122032,89124.0,89109.0,0.20058384]
[1769309847332,0.01122044,89123.0,89109.0,0.20058384]
[1769309847510,0.01122032,89124.0,89109.0,0.20058384]
[1769309848577,0.14600197,89125.0,89109.0,0.20058384]
[1769309848943,0.14600197,89125.0,89109.0,0.0001492]
[1769309849139,0.15914835,89125.0,89109.0,0.0001492]
[1769309852893,0.03,89124.0,89109.0,0.0001492]
[1769309853099,0.16478178,89124.0,89109.0,0.0001492]
[1769309853322,0.03,89121.0,89109.0,0.0001492]
[1769309853747,0.03,89121.0,89109.0,0.20436085]
[1769309854043,0.03,89121.0,89109.0,0.20378398]
[1769309854244,0.03,89121.0,89109.0,0.19856929]
[1769309854446,0.03,89120.0,89109.0,0.19509252]
[1769309854662,0.03,89120.0,89109.0,0.1899934]
[1769309854849,0.03,89120.0,89109.0,0.17999929]
[1769309855200,0.03,89118.0,89109.0,0.17999929]
[1769309855554,0.03,89116.0,89109.0,0.17999929]
[1769309855734,0.03,89114.0,89109.0,0.17999929]
[1769309855959,0.03,89114.0,89111.0,0.20421165]
[1769309856928,0.03,89113.0,89111.0,0.20421165]
[1769309857850,0.14234626,89114.0,89111.0,0.20421165]
[1769309858058,0.03,89112.0,89111.0,0.20421165]
[1769309858259,0.03,89112.0,89111.0,0.19537045]
[1769309858527,0.03,89112.0,89111.0,0.1829886]
[1769309858720,0.03,89112.0,89111.0,0.17060077]
[1769309858913,0.03,89112.0,89111.0,0.15997795]
[1769309859119,0.14234626,89119.0,89111.0,0.15820706]
[1769309859394,0.03,89117.0,89111.0,0.15820706]
[1769309859619,0.01122044,89123.0,89111.0,0.15820706]
[1769309859620,0.03,89115.0,89111.0,0.15820706]
[1769309859814,0.14234626,89115.0,89111.0,0.15820706]
[1769309860017,0.03,89113.0,89111.0,0.15820706]
[1769309860217,0.14234626,89113.0,89111.0,0.15820706]
[1769309860427,0.03,89111.0,89106.0,0.20421165]
[1769309860643,0.03,89111.0,89105.0,0.21304511]
[1769309860644,0.14234626,89111.0,89108.0,0.20421165]
[1769309860816,0.03,89109.0,89108.0,0.20421165]
[1769309861035,0.14234626,89109.0,89108.0,0.41718742]
[1769309861234,0.03,89109.0,89108.0,0.41718742]
[1769309861626,0.03,89109.0,89108.0,0.41187637]
[1769309861810,0.03,89109.0,89108.0,0.3994842]
[1769309862010,0.03,89109.0,89108.0,0.38708909]
[1769309862219,0.03,89109.0,89108.0,0.38346115]
[1769309862456,0.03,89109.0,89108.0,0.37232043]
[1769309862672,0.03,89109.0,89108.0,0.37046352]
[1769309862969,0.03,89113.0,89108.0,0.35003487]
[1769309863129,0.03,89113.0,89108.0,0.3370323]
[1769309863962,0.03,89118.0,89108.0,0.3370323]
[1769309864184,0.03,89116.0,89108.0,0.3370323]
[1769309864393,0.1423422,89116.0,89108.0,0.3370323]
[1769309864561,0.03,89114.0,89108.0,0.3370323]
[1769309865351,0.03,89114.0,89108.0,0.32402858]
[1769309865556,0.03,89118.0,89108.0,0.31474018]
[1769309865756,0.03,89116.0,89108.0,0.31474018]
[1769309865960,0.1423422,89116.0,89108.0,0.31251758]
[1769309866214,0.03,89114.0,89108.0,0.31251758]
[1769309867392,0.03,89113.0,89108.0,0.31251758]
[1769309868623,0.03,89112.0,89108.0,0.31251758]
[1769309868973,0.03,89112.0,89108.0,0.30696095]
[1769309869175,0.03,89112.0,89108.0,0.29918119]
[1769309869382,0.01122069,89121.0,89108.0,0.29918119]
[1769309869383,0.03,89111.0,89108.0,0.29140086]
[1769309869616,0.03,89111.0,89108.0,0.28361997]
[1769309869826,0.03,89111.0,89108.0,0.27806184]
[1769309870433,0.03,89110.0,89108.0,0.27806184]
[1769309871621,0.03,89117.0,89108.0,0.27806184]
[1769309871847,0.03,89115.0,89108.0,0.27806184]
[1769309872047,0.1423422,89115.0,89108.0,0.27806184]
[1769309872245,0.03,89113.0,89108.0,0.27806184]
[1769309872467,0.1423422,89113.0,89108.0,0.27806184]
[1769309872709,0.03,89111.0,89108.0,0.27806184]
[1769309872906,0.1423422,89111.0,89108.0,0.27806184]
[1769309873133,0.03,89109.0,89108.0,0.21297577]
[1769309873342,0.1423422,89109.0,89108.0,0.21297577]
[1769309873547,0.03,89109.0,89108.0,0.21297577]
[1769309874235,0.03,89113.0,89108.0,0.21297577]
[1769309874472,0.1423422,89113.0,89108.0,0.21297577]
[1769309874649,0.03,89111.0,89108.0,0.21297577]
[1769309874855,0.1423422,89111.0,89108.0,0.21297577]
[1769309875063,0.03,89109.0,89108.0,0.21297577]
[1769309875261,0.1423422,89109.0,89106.0,0.21297577]
[1769309875592,0.03,89107.0,89106.0,0.21297577]
[1769309875794,0.01122057,89122.0,89106.0,0.21297577]
[1769309875924,0.01122069,89121.0,89106.0,0.21297577]
[1769309876275,0.01122082,89120.0,89106.0,0.21297577]
[1769309876510,0.03,89120.0,89106.0,0.21297577]
[1769309876719,0.01122069,89121.0,89106.0,0.21297577]
[1769309879221,0.01122057,89122.0,89106.0,0.21297577]
[1769309879431,0.03,89121.0,89106.0,0.21297577]
[1769309880143,0.03,89122.0,89106.0,0.21297577]
[1769309882139,0.03,89122.0,89106.0,0.41718742]
[1769309883612,0.03,89121.0,89106.0,0.41718742]
[1769309884872,0.03,89123.0,89106.0,0.41718742]
[1769309885839,0.03,89121.0,89106.0,0.41718742]
[1769309887835,0.03,89119.0,89106.0,0.41718742]
[1769309887973,0.03,89117.0,89106.0,0.41718742]
[1769309888170,0.03,89115.0,89106.0,0.41718742]
[1769309888355,0.14234565,89115.0,89106.0,0.41718742]
[1769309888552,0.03,89113.0,89106.0,0.41718742]
[1769309888768,0.14234565,89113.0,89106.0,0.41718742]
[1769309888972,0.03,89111.0,89105.0,6.934e-05]
[1769309889966,0.03,89117.0,89105.0,6.934e-05]
[1769309890183,0.03,89115.0,89105.0,6.934e-05]
[1769309890397,0.14234565,89115.0,89105.0,6.934e-05]
[1769309890626,0.03,89113.0,89105.0,6.934e-05]
[1769309891826,0.03,89112.0,89105.0,6.934e-05]
[1769309892821,0.03,89111.0,89105.0,6.934e-05]
[1769309893858,0.32501295,89122.0,89105.0,6.934e-05]
[1769309893859,0.03,89114.0,89105.0,6.934e-05]
[1769309894910,0.03,89115.0,89105.0,6.934e-05]
[1769309895126,0.03,89113.0,89105.0,6.934e-05]
[1769309896288,0.03,89112.0,89105.0,6.934e-05]
[1769309897458,0.03,89114.0,89105.0,6.934e-05]
[1769309898663,0.03,89113.0,89105.0,6.934e-05]
[1769309899839,0.03,89112.0,89105.0,6.934e-05]
[1769309901098,0.03,89111.0,89105.0,6.934e-05]
[1769309902113,0.03,89113.0,89105.0,6.934e-05]
[1769309903200,0.03,89112.0,89105.0,6.934e-05]
[1769309904281,0.03,89111.0,89105.0,6.934e-05]
[1769309905265,0.14233125,89114.0,89105.0,6.934e-05]
[1769309905522,0.03,89112.0,89105.0,6.934e-05]
[1769309906521,0.03,89114.0,89105.0,6.934e-05]
[1769309907573,0.03,89113.0,89105.0,6.934e-05]
[1769309908623,0.03,89112.0,89105.0,6.934e-05]
[1769309909660,0.03,89113.0,89105.0,6.934e-05]
[1769309910713,0.14233125,89115.0,89105.0,6.934e-05]
[1769309910921,0.03,89113.0,89105.0,6.934e-05]
[1769309911958,0.03,89112.0,89105.0,6.934e-05]
[1769309912953,0.03,89116.0,89105.0,6.934e-05]
[1769309913112,0.03,89114.0,89105.0,6.934e-05]
[1769309913313,0.14233125,89114.0,89105.0,6.934e-05]
[1769309913569,0.03,89112.0,89105.0,6.934e-05]
[1769309914573,0.03,89114.0,89105.0,6.934e-05]
[1769309914768,0.14233125,89114.0,89105.0,6.934e-05]
[1769309914994,0.03,89112.0,89105.0,6.934e-05]
[1769309916098,0.03,89111.0,89105.0,6.934e-05]
[1769309917207,0.03,89116.0,89105.0,6.934e-05]
[1769309917386,0.03,89114.0,89105.0,6.934e-05]
[1769309917595,0.03,89112.0,89105.0,6.934e-05]
[1769309917791,0.14233125,89112.0,89105.0,6.934e-05]
[1769309918001,0.03,89110.0,89105.0,6.934e-05]
[1769309918198,0.14233125,89110.0,89105.0,6.934e-05]
[1769309918523,0.03,89108.0,89105.0,6.934e-05]
[1769309919570,0.03,89107.0,89105.0,6.934e-05]
[1769309920575,0.14233125,89112.0,89105.0,6.934e-05]
[1769309920810,0.03,89110.0,89105.0,6.934e-05]
[1769309920991,0.14233125,89110.0,89105.0,6.934e-05]
[1769309921328,0.03,89108.0,89105.0,6.934e-05]
[1769309922103,0.03,89107.0,89105.0,6.934e-05]
[1769309923011,0.14233125,89107.0,89105.0,6.934e-05]
[1769309923250,0.14233125,89106.0,89105.0,6.934e-05]
[1769309923630,0.03,89106.0,89105.0,6.934e-05]
[1769309927444,0.03,89113.0,89105.0,6.934e-05]
[1769309930476,0.14233125,89113.0,89105.0,6.934e-05]
[1769309930677,0.03,89111.0,89105.0,6.934e-05]
[1769309930883,0.14233125,89111.0,89105.0,6.934e-05]
[1769309931085,0.03,89109.0,89105.0,6.934e-05]
[1769309932019,0.03,89108.0,89105.0,6.934e-05]
[1769309932608,0.14229114,89108.0,89105.0,6.934e-05]
[1769309932846,0.03,89106.0,89105.0,6.934e-05]
[1769309933205,0.03,89106.0,89099.0,0.18714712]
[1769309933206,0.03,89106.0,89099.0,0.18495003]
[1769309933407,0.03,89106.0,89099.0,0.18499755]
[1769309933844,0.03,89105.0,89099.0,0.18499755]
[1769309934979,0.14229114,89109.0,89099.0,0.18499755]
[1769309935156,0.03,89107.0,89099.0,0.18465854]
[1769309935354,0.14229114,89107.0,89099.0,0.18465854]
[1769309935556,0.03,89105.0,89099.0,0.18465854]
[1769309936644,0.03,89112.0,89099.0,0.18465854]
[1769309937260,0.14229114,89112.0,89099.0,0.18465854]
[1769309937455,0.03,89110.0,89099.0,0.18465854]
[1769309937660,0.14229114,89110.0,89099.0,0.18465854]
[1769309937888,0.03,89108.0,89099.0,0.18465854]
[1769309939198,0.03,89107.0,89099.0,0.18465854]
[1769309940222,0.03,89106.0,89099.0,0.18465854]
[1769309941349,0.03,89105.0,89099.0,0.18465854]
[1769309942457,0.03,89106.0,89099.0,0.18465854]
[1769309943005,0.03,89106.0,89100.0,0.18295722]
[1769309943564,0.08983317,89113.0,89100.0,0.18261821]
[1769309943565,0.03,89107.0,89100.0,0.18261821]
[1769309944355,0.03,89106.0,89100.0,0.18261821]
[1769309944995,0.03,89106.0,89101.0,0.38646435]
[1769309945137,0.03,89106.0,89101.0,0.38022154]
[1769309945343,0.14229539,89106.0,89101.0,0.38022154]
[1769309945620,0.13698053,89118.0,89101.0,0.38022154]
[1769309945621,0.03,89104.0,89102.0,0.01860175]
[1769309945823,0.03,89104.0,89101.0,0.38022154]
[1769309946666,0.03,89103.0,89101.0,0.38022154]
[1769309947276,0.08985666,89120.0,89103.0,0.00200701]
[1769309947502,0.26851898,89121.0,89105.0,0.18295722]
[1769309947710,0.17641215,89121.0,89105.0,0.20144537]
[1769309947926,0.18824542,89121.0,89105.0,0.20144537]
[1769309948091,0.18547821,89121.0,89105.0,0.20144537]
[1769309948293,0.30496048,89121.0,89105.0,0.20144537]
[1769309948458,0.37526179,89121.0,89105.0,0.20144537]
[1769309948661,0.08985666,89120.0,89105.0,0.20144537]
[1769309950002,0.18327241,89121.0,89105.0,0.20144537]
[1769309951832,0.1944931,89121.0,89105.0,0.20144537]
[1769309952036,0.18327241,89121.0,89105.0,0.20144537]
[1769309952429,0.1944931,89121.0,89105.0,0.20144537]
[1769309953870,0.18327241,89121.0,89105.0,0.20144537]
[1769309955098,0.03,89122.0,89105.0,0.20144537]
[1769309955282,0.03108262,89122.0,89105.0,0.20144537]
[1769309957471,0.03,89122.0,89105.0,0.20144537]
[1769309957679,0.00108262,89121.0,89105.0,0.20144537]
[1769309958654,0.03,89121.0,89106.0,0.19566391]
[1769309958854,0.03,89121.0,89109.0,0.20267979]
[1769309959581,0.03,89120.0,89109.0,0.20267979]
[1769309959984,0.03,89120.0,89110.0,0.19566391]
[1769309960180,0.03,89120.0,89111.0,0.20267979]
[1769309960387,0.14231846,89120.0,89111.0,0.20267979]
[1769309960595,0.03,89118.0,89111.0,0.20267979]
[1769309960792,0.14231846,89118.0,89111.0,0.20267979]
[1769309961031,0.03,89116.0,89111.0,0.20267979]
[1769309961239,0.14231846,89116.0,89111.0,0.20267979]
[1769309961444,0.03,89114.0,89111.0,0.20267979]
[1769309962476,0.03,89113.0,89111.0,0.20267979]
[1769309963463,0.11231846,89113.0,89111.0,0.20267979]
[1769309963670,0.10799629,89112.0,89111.0,0.20267979]
[1769309963866,0.01122057,89122.0,89111.0,0.20267979]
[1769309964506,0.04122032,89124.0,89111.0,0.20267979]
[1769309964753,0.01122044,89123.0,89111.0,0.20267979]
[1769309965792,0.03366944,89122.0,89111.0,0.19295124]
[1769309966202,0.03366944,89122.0,89111.0,0.1866175]
[1769309969016,0.03366944,89122.0,89111.0,0.18078571]
[1769309973278,0.04489001,89122.0,89111.0,0.18078571]
[1769309973639,0.03366944,89122.0,89111.0,0.18078571]
[1769309973838,0.01122032,89124.0,89111.0,0.18078571]
[1769309974068,0.06366929,89123.0,89111.0,0.18078571]
[1769309974583,0.03,89123.0,89111.0,0.18078571]
[1769309974742,0.03,89121.0,89111.0,0.18078571]
[1769309975372,0.03,89119.0,89111.0,0.18078571]
[1769309975773,0.03,89117.0,89111.0,0.18078571]
[1769309976028,0.14233793,89117.0,89111.0,0.06842835]
[1769309976244,0.03,89115.0,89111.0,0.06842835]
[1769309976872,0.14233793,89115.0,89111.0,0.06842835]
[1769309977074,0.03366929,89114.0,89111.0,0.06842835]
[1769309977230,0.03,89113.0,89111.0,0.06842835]
[1769309979062,0.03,89113.0,89111.0,0.27091132]
[1769309979963,0.03,89112.0,89111.0,0.27091132]
[1769309980376,0.03,89112.0,89100.0,0.0001492]
[1769309980582,0.03,89112.0,89100.0,0.00742074]
[1769309980824,0.03,89112.0,89103.0,0.20248297]
[1769309980956,0.03,89111.0,89106.0,0.20248297]
[1769309981163,0.03,89111.0,89100.0,0.0001492]
[1769309981164,0.03,89111.0,89109.0,0.39627426]
[1769309981405,0.03,89111.0,89109.0,0.19379129]
[1769309981632,0.03,89111.0,89110.0,0.20248297]
[1769309981767,0.03,89111.0,89110.0,0.19248297]
[1769309982216,0.03,89122.0,89110.0,0.19248297]
[1769309982410,0.04806181,89133.0,89110.0,0.19248297]
[1769309982411,0.03,89118.0,89110.0,0.19248297]
[1769309982689,0.03,89113.0,89110.0,0.19248297]
[1769309984007,0.03,89114.0,89110.0,0.19248297]
[1769309985322,0.0384,89126.0,89110.0,0.19160713]
[1769309985535,0.03,89119.0,89110.0,0.19160713]
[1769309985771,0.03,89117.0,89110.0,0.19160713]
[1769309986457,0.06366929,89117.0,89110.0,0.19160713]
[1769309986921,0.0384,89119.0,89110.0,0.19160713]
[1769309987052,0.03,89115.0,89110.0,0.19160713]
[1769309987700,0.06366929,89115.0,89110.0,0.19160713]
[1769309988756,0.06366929,89115.0,89110.0,0.1907276]
[1769309988906,0.03,89113.0,89110.0,0.1907276]
[1769309989278,0.11235039,89114.0,89110.0,0.1907276]
[1769309989481,0.11235039,89113.0,89110.0,0.1907276]
[1769309989772,0.11235039,89112.0,89110.0,0.1907276]
[1769309990075,0.14235039,89111.0,89110.0,0.1907276]
[1769309990283,0.03366929,89115.0,89110.0,0.1907276]
[1769309990727,0.03366929,89115.0,89110.0,0.38451889]